Cogmind - Beta 16.1 @@@ ROGUE MODE // 2026.03.11 @ 09:49:26 Player: Ragnakor Result: Destroyed by 7O-JYC(R) with Subdweller Laser Performance ------------- Evolutions (0) 0 Regions Visited (3) 600 Robots Destroyed (6) 30 Value Destroyed (173) 173 Prototype IDs (1) 20 Alien Tech Used (0) 0 Bonus (0) 0 TOTAL SCORE: 823 Bonus ------- None Cogmind --------- Core Integrity 0/250 Matter 223/300 Energy 199/200 System Corruption 0% Temperature Cool (6) Movement Rolling (105) Location -10/Subcaves Parts ------- > --- POWER (1) -------- Subdweller Power Source > --- PROPULSION (2) --- Compact Wheel Subdweller Monowheel > --- UTILITY (2) ------ Small Storage Unit Thief Drone Bay (3/3) > --- WEAPON (2) ------- Assault Rifle Makeshift Spear > --- INVENTORY (8) ---- Light Ion Engine Subdweller Power Source Aluminum Leg Compact Wheel Light Assault Rifle Rocket Launcher Peak State ------------ > --- POWER ------------ Subdweller Power Source > --- PROPULSION ------- Subdweller Monowheel Subdweller Monowheel > --- UTILITY ---------- Small Storage Unit Thief Drone Bay > --- WEAPON ----------- Flamer Makeshift Spear > --- INVENTORY -------- Light Ion Engine Subdweller Power Source Aluminum Leg Compact Wheel Compact Wheel Assault Rifle Light Assault Rifle Rocket Launcher [Rating: 21] Favorites ----------- Power Light Ion Engine Engine Light Ion Engine Propulsion Aluminum Leg Leg Aluminum Leg Wheel Subdweller Monowheel Utility Small Storage Unit Device Thief Drone Bay Storage Small Storage Unit Weapon Makeshift Spear Energy Gun EM Pulse Gun Ballistic Gun Assault Rifle Launcher Rocket Launcher Special Weapon Flamer Piercing Weapon Makeshift Spear Build | -11 -10 -10 -10 ------- Run | Yrd Mat Min Sub Slots Evolved . | . . . . Power . | . . . . Propulsion . | . . . . Utility . | . . . . Weapon . | . . . . Parts Attached 18 | 7 . 2 9 Power 3 | 1 . . 2 Engine 3 | 1 . . 2 Core . | . . . . Reactor . | . . . . Propulsion 5 | 2 . . 3 Treads . | . . . . Leg 2 | 2 . . . Wheel 3 | . . . 3 Hover . | . . . . Flight . | . . . . Utility 3 | 2 . 1 . Device 2 | 1 . 1 . Storage 1 | 1 . . . Processor . | . . . . Hackware . | . . . . Protection . | . . . . Artifact . | . . . . Weapon 7 | 2 . 1 4 Energy Gun 2 | 2 . . . Energy Cannon . | . . . . Ballistic Gun 1 | . . . 1 Ballistic Cannon . | . . . . Launcher 1 | . . . 1 Special Weapon 2 | . . . 2 Impact Weapon . | . . . . Slashing Weapon . | . . . . Piercing Weapon 1 | . . 1 . Special Melee Weapon . | . . . . Unidentified Prototypes 1 | . . 1 . Parts Lost 4 | . . . 4 Power . | . . . . Propulsion 1 | . . . 1 Utility . | . . . . Weapon 3 | . . . 3 Highest Loss Streak 2 | . . . 2 To Critical Strikes . | . . . . Average Backups 5 | 1 3 4 7 Power . | . . . 1 Propulsion 2 | 1 2 2 2 Utility . | . . . . Weapon 2 | . 1 2 2 Tool/Special . | . . . . Unused Backups 2 | . . . 2 Power . | . . . . Propulsion 1 | . . . 1 Utility . | . . . . Weapon 1 | . . . 1 Tool/Special . | . . . . Average Slot Usage (%) 99 | . 100 100 98 Engine 14 | . 14 14 14 Leg 19 | . 28 28 10 Wheel 8 | . . . 17 Device 14 | . 14 14 14 Storage 14 | . 14 14 14 Energy Gun 10 | . 28 18 1 Launcher 2 | . . . 4 Special Weapon 4 | . . . 9 Piercing Weapon 9 | . . 9 11 Peak Build Rating 21 | 9 9 16 21 Average Rating 15 | 5 9 14 18 On Entrance 8 | . 9 9 16 Avg Prop Armor Cover (%) 7 | . . . 7 Naked Turns . | . . . . Heaviest Build 20 | 13 13 16 20 Greatest Support 40 | 20 20 20 40 Greatest Overweight (x) 1 | . . . 1 Average Overweight (x) . | . . . . Largest Inventory Capacity 8 | 8 8 8 8 Average Capacity 7 | 7 8 8 8 Most Carried 8 | 3 4 6 8 Average Carried 5 | 1 3 4 7 Final Capacity 8 | 8 8 8 8 Final Carried 6 | 3 4 5 6 Class Distribution -------------------- 100% | Mutant Dominant Class ---------------- Mutant | -10/Materials Mutant | -10/Mines Mutant | -10/Subcaves Resources | -11 -10 -10 -10 ----------- Run | Yrd Mat Min Sub Matter Collected 407 | 270 . 30 107 Remotely . | . . . . Salvage Created 294 | 103 . . 191 Parts 16 | 7 . . 9 Haulers Intercepted . | . . . . Recyclers Shooed . | . . . . Parts Field Recycled . | . . . . Retrieved Matter . | . . . . Parts Self-Destructed . | . . . . Prevented . | . . . . Parts Restored . | . . . . Kills | -11 -10 -10 -10 ------- Run | Yrd Mat Min Sub Combat Hostiles Destroyed 4 | . . . 4 Melee 4 | . . . 4 Classes Destroyed 3 | 2 . . 1 Tunneler 1 | 1 . . . Recycler 1 | 1 . . . Subdweller 4 | . . . 4 Best Kill Streak 2 | 2 . . 2 Combat Bots Only 2 | . . . 2 Max Kills in Single Turn 1 | 1 . . 1 Gunslinging . | . . . . Exploded . | . . . . Melee 1 | . . . 1 Uniques/NPCs Destroyed . | . . . . Combat | -11 -10 -10 -10 -------- Run | Yrd Mat Min Sub Hostile Shots Fired 52 | . 15 . 37 Missed 17 | . 8 . 9 Hits 35 | . 7 . 28 Projectile 35 | . 7 . 28 Damage Taken 719 | . 62 . 657 Core 259 | . 9 . 250 Absorbed by Shields . | . . . . Core Remaining (%) 100 | 100 . . . Volleys Fired 27 | 4 . . 23 Largest 2 | 2 . . 2 Hottest 133 | 90 . . 133 Shots Fired 32 | 8 . . 24 Gun 12 | 8 . . 4 Cannon . | . . . . Launcher 5 | . . . 5 Special 15 | . . . 15 Kinetic 3 | . . . 3 Thermal 19 | 4 . . 15 Explosive 5 | . . . 5 Electromagnetic 5 | 4 . . 1 Robot Hit Streak 7 | 4 . . 7 Robot Miss Streak 1 | 1 . . 1 Penetration Max . | . . . . Secondary Targets . | . . . . Shots Hit Robots 21 | 6 . 1 14 Core Hits 6 | 2 . . 4 Critical Kills . | . . . . Critical Parts Destroyed . | . . . . Critical Strikes 1 | . . . 1 Impale 1 | . . . 1 Melee Attacks 35 | . . 1 34 Impact . | . . . . Slashing . | . . . . Piercing 35 | . . 1 34 Sneak Attacks 1 | . . 1 . Combat Hostiles . | . . . . Follow-up Attacks . | . . . . Damage Inflicted 505 | 77 . 71 357 Guns 103 | 77 . . 26 Cannons . | . . . . Explosions 65 | . . . 65 Melee 326 | . . 71 255 Ramming . | . . . . Kinetic 26 | . . . 26 Thermal 49 | 38 . . 11 Explosive 65 | . . . 65 Electromagnetic 39 | 39 . . . Impact . | . . . . Slashing . | . . . . Piercing 326 | . . 71 255 Highest Corruption . | . . . . Average Corruption . | . . . . Corruption Purged . | . . . . Corruption Blocked . | . . . . Overload Shots . | . . . . Overflow Damage 46 | . . 46 . Projectiles . | . . . . Explosions . | . . . . Melee 46 | . . 46 . Knockbacks . | . . . . Impact . | . . . . Kinetic . | . . . . Secondary . | . . . . Self-Inflicted Damage 58 | . . . 58 Shots 2 | . . . 2 Rammed . | . . . . Targets Rammed . | . . . . Kicked . | . . . . Crushed . | . . . . Highest Temperature 60 | 60 . . . Average Temperature 25 | 25 . . . Received Heat Transfer 105 | . . . 105 Siege Activations . | . . . . Martial Activations . | . . . . Shielding Activations . | . . . . Robots Disrupted . | . . . . Combat Hostiles . | . . . . Robots Corrupted . | . . . . Combat Hostiles . | . . . . Parts Fried . | . . . . Impact Corruptions . | . . . . Robots Melted . | . . . . Combat Hostiles . | . . . . Parts Melted 1 | . . . 1 Heat Transferred 191 | 111 . . 80 Parts Sabotaged . | . . . . Parts Stolen . | . . . . Parts Stripped . | . . . . Power Chain Reactions . | . . . . Alert | -11 -10 -10 -10 ------- Run | Yrd Mat Min Sub Maximum Alert Level . | . . . . Low Security (%) 100 | 100 100 100 . Level 1 . | . . . . Level 2 . | . . . . Level 3 . | . . . . Level 4 . | . . . . Level 5 . | . . . . High Security . | . . . . Max Security . | . . . . Peak Influence 10 | 10 . . . Initial . | . . . . Average . | . . . . Influence Increases 10 | 10 . . . Destroy 0b10 Robot/NC 10 | 10 . . . Influence Decreases 10 | 10 . . . Time Decay 10 | 10 . . . Squads Dispatched . | . . . . Investigation . | . . . . Extermination . | . . . . Reinforcement . | . . . . Assault . | . . . . Garrison . | . . . . Intercept . | . . . . Searches Triggered . | . . . . Construction Impeded . | . . . . Haulers Reinforced . | . . . . Active Scanning Responses . | . . . . Cargo Convoy Interrupts . | . . . . Stealth | -11 -10 -10 -10 --------- Run | Yrd Mat Min Sub Distress Signals . | . . . . Communications Jammed . | . . . . Distress Signals . | . . . . Times Spotted 9 | . 4 . 5 Peak Tracking Total 4 | . 4 . 2 Tactical Retreats . | . . . . Traps | -11 -10 -10 -10 ------- Run | Yrd Mat Min Sub Traps Triggered . | . . . . Indirectly . | . . . . Trap Hack Attempts . | . . . . Triggered . | . . . . Disarmed . | . . . . Reprogrammed . | . . . . Reused . | . . . . Traps Extracted . | . . . . Installed . | . . . . Triggered . | . . . . Machines | -11 -10 -10 -10 ---------- Run | Yrd Mat Min Sub Machines Disabled . | . . . . Max in Single Turn . | . . . . Machines Repaired . | . . . . Machines Dismantled . | . . . . Machines Sabotaged . | . . . . Overloaded Fab Kills . | . . . . Hacking | -11 -10 -10 -10 --------- Run | Yrd Mat Min Sub Machines Accessed 1 | . . 1 . Terminals . | . . . . Fabricators . | . . . . Repair Stations . | . . . . Recycling Units . | . . . . Scanalyzers . | . . . . Garrison Access . | . . . . Total Hacks 1 | . . 1 . Successful 1 | . . 1 . Failed . | . . . . Catastrophic . | . . . . Database Lockouts . | . . . . Manual . | . . . . Terminals . | . . . . Fabricators . | . . . . Repair Stations . | . . . . Recycling Units . | . . . . Scanalyzers . | . . . . Garrison Access . | . . . . Terminal Hacks 1 | . . 1 . Open Door 1 | . . 1 . Fabricator Hacks . | . . . . Repair Station Hacks . | . . . . Recycling Unit Hacks . | . . . . Scanalyzer . | . . . . Garrison Access Hacks . | . . . . Unauthorized Hacks . | . . . . Terminals . | . . . . Fabricators . | . . . . Repair Stations . | . . . . Recycling Units . | . . . . Scanalyzers . | . . . . Garrison Access . | . . . . Data Cores Recovered . | . . . . Used . | . . . . Hacking Detections . | . . . . Full Trace Events . | . . . . Feedback Events . | . . . . Feedback Blocked . | . . . . Robot Schematics Acquired . | . . . . Robots Built . | . . . . Authchips . | . . . . Time . | . . . . Total Robot Build Rating . | . . . . Part Schematics Acquired . | . . . . Parts Built . | . . . . Authchips . | . . . . Time . | . . . . Total Part Build Rating . | . . . . Part Studies Acquired . | . . . . Parts Repaired . | . . . . Time . | . . . . Parts Recycled . | . . . . Recycled Matter . | . . . . Retrieved Matter . | . . . . Retrieved Components . | . . . . Parts Scanalyzed . | . . . . Part Schematics Acquired . | . . . . Parts Damaged . | . . . . Bothacking | -11 -10 -10 -10 ------------ Run | Yrd Mat Min Sub Used RIF Installer . | . . . . Robots Hacked . | . . . . Non-combat . | . . . . Combat . | . . . . Robot Hacks Applied . | . . . . Relay Couplers Released . | . . . . Fabnet Peak Effective % . | . . . . Robots Rewired . | . . . . Allies Hacked . | . . . . Hacks Repelled . | . . . . Allies | -11 -10 -10 -10 -------- Run | Yrd Mat Min Sub Total Allies . | . . . . Largest Group . | . . . . Highest-Rated Group . | . . . . Highest-Rated Ally . | . . . . Total Orders 1 | . . 1 . RETURN 1 | . . 1 . Ally Attacks . | . . . . Total Damage . | . . . . Kills . | . . . . Allies Corrupted . | . . . . Allies Melted . | . . . . Intel | -11 -10 -10 -10 ------- Run | Yrd Mat Min Sub Active Infowar (turns) 195 | 32 67 96 . Terrain 195 | 32 67 96 . Robot Analysis Total . | . . . . Derelict Logs Recovered 3 | . . 2 1 Drone Launches 3 | . . 3 . Drone Recoveries 3 | . . 3 . Exploration | -11 -10 -10 -10 ------------- Run | Yrd Mat Min Sub Turns Passed 1242 | 114 67 481 580 Spaces Moved 837 | 73 56 355 353 Core 5 | 5 . . . Treads . | . . . . Legs 586 | 68 56 355 107 Wheels 246 | . . . 246 Hover . | . . . . Flight . | . . . . Fastest Speed 50 | 50 120 120 105 Average Speed 116 | 115 120 120 112 Slowest Speed 190 | 120 120 120 190 Overloaded Moves . | . . . . Propulsion Burnouts . | . . . . Robots Hopped . | . . . . Potential Cave-ins 2 | . . . 2 Cave-ins Triggered . | . . . . Exploration Rate (%) 28 | 4 15 84 10 Regions Visited 3 Branch Regions 2 Pre-discovered Areas 2 | . . 1 1 Known Exits Taken . | . . . . Unknown Exits Taken 3 | 1 1 1 . Scrap Searched 4 | . . 1 3 Spaces Dug 9 | . . . 9 Terrain Destroyed 28 | . . . 28 Melee 5 | . . . 5 Projectile . | . . . . AOE 23 | . . . 23 Terrain Rammed . | . . . . Walls Destroyed . | . . . . Machines Disabled . | . . . . Actions | -11 -10 -10 -10 --------- Run | Yrd Mat Min Sub Total 1002 | 91 56 409 446 Wait 71 | 5 . 44 22 Move 834 | 72 55 354 353 Hop . | . . . . Pick Up 7 | 3 1 3 . Fast Attach 11 | 7 . 1 3 Attach 2 | . . . 2 Detach 1 | . . 1 . Swap 10 | . . 2 8 Drop 4 | . . 3 1 Fire 27 | 4 . . 23 Melee 35 | . . 1 34 Ram . | . . . . Kick . | . . . . Crush . | . . . . Escape Stasis . | . . . . Rewire . | . . . . Trap . | . . . . Miscellaneous . | . . . . Route ------- -11/Scrapyard -10/Materials -10/Mines (discovered 2 exits: [*Mat] / [*Sub]) -10/Subcaves (discovered 1 exit: [*Mat]) History --------- Turn | Location | Event 11 | -11/Scrapyard | Discovered new exit (range 15) 115 | -11/Scrapyard | Entered Materials 155 | -10/Materials | Discovered new exit (range 11) 182 | -10/Materials | Entered Mines 265 | -10/Mines | Learned location of Zion (-6) 272 | -10/Mines | Found the Drone Emporium 278 | -10/Mines | Found Prototype Device 278 | -10/Mines | Identified Thief Drone Bay 303 | -10/Mines | Build established: Mutant 347 | -10/Mines | A weapon hastily lodged in a ceiling crevice suddenly fell to the ground 483 | -10/Mines | Found a hidden stash of uninstalled traps 495 | -10/Mines | Learned Materials stockpile data 562 | -10/Mines | Discovered new exit (range 14) 600 | -10/Mines | Received a Rocket Launcher from a helpful Derelict 656 | -10/Mines | Discovered new exit (range 6) 663 | -10/Mines | Entered Subcaves 664 | -10/Subcaves | Approached by a straggling Scientist 665 | -10/Subcaves | A swath of the cavern ceiling suddenly collapsed 811 | -10/Subcaves | Learned location of Mines (-10) 824 | -10/Subcaves | Discovered new exit (range 9) 870 | -10/Subcaves | Disturbed a concealed Subdweller 1229 | -10/Subcaves | Core integrity fell below 50% 1240 | -10/Subcaves | Core integrity fell below 20% 1243 | -10/Subcaves | Destroyed by 7O-JYC(R) with Subdweller Laser Last Messages --------------- JT-VR5(c): "I think it's somewhere west of here" 00969_ Acquired 40 matter. JT-VR5(c): "I think it's somewhere west of here" 01034_ JT-VR5(c): "Hey, let me tag along and I can get us both out of this nasty situation. At least I think I can... The group I got separated from was talking about a shortcut back to the UFD." 01061_ Acquired 32 matter. JT-VR5(c): "I think it's somewhere west of here" 01109_ The unstable cave ceiling collapses. JT-VR5(c): "I think it's somewhere west of here" 01123_ Sub. Monowheel shoots sparks and powers down. 01136_ Dropped Broken Sub. Monowheel. JT-VR5(c): "I think it's somewhere west of here" 01217_ The unstable cave ceiling collapses. JT-VR5(c): "I think it's somewhere west of here" 01230_ Flamer destroyed. 01239_ XS-NBG(R) destroyed. Map ----- +----------------------------------------------------+ | | | | | ?????????????????????????????????????????????????? | | ?????????????????????????????????????????????????? | | ?????????????????????????????????????????????????? | | ?????????????????????????????????????????????????? | | ?????????????????????????????????????????????????? | | ?????????????????????????????????????????????????? | | ?????????????????????????????????????????????????? | | ?????????????????????????????????????????????????? | | ?????????????????????????????????????????????????? | | ?????????????????????????????????????????????????? | | ?????????????????????????????????????????????????? | | ?????????????????????????????????????????????????? | | ?????????????????????????????????????????????????? | | ??????????????????????????????????????????????#### | | ?????????????????????????????????????????????### # | | ????????????????????????????????????????????### | | ????????????????????????????????????????????#" | | ??????????????????#####????????####?##?????## | | ?????????????????## ??????### ## ##????# | | ????????????????## ????##" ##???## | | ????????????????# ????# "" "#?##?## | | ?????????????????# ??## "" #?#"## | | ??????????????????# =### "" ####### # | | ??????????????????# % &%@ c " ## #"#" | | ????????????????# %! ## ; #"#" # | | ???????????????# % ### """##"#" "# # | | ??????????????# #?## #####"#" # # | | ??????????????## #??##"#???##### "#### | | ??????????????# % ##???###?????#"="##??? | | ????????????? #???????????##"###???? | | ???????????? R ## #???????????# #?????? | | ????????????? ####?###% #???????????####?????? | | ????????????? ???????####????????????????????? | | ?????????????? ????????????????????????????????? | | ?????????????? ?????????????????????????????????? | | ?????????????????????????????????????????????????? | | ?????????????????????????????????????????????????? | | ?????????????????????????????????????????????????? | | ?????????????????????????????????????????????????? | | ?????????????????????????????????????????????????? | | ?????????????????????????????????????????????????? | | ?????????????????????????????????????????????????? | | ?????????????????????????????????????????????????? | | ?????????????????????????????????????????????????? | | ?????????????????????????????????????????????????? | | ?????????????????????????????????????????????????? | | ?????????????????????????????????????????????????? | | ?????????????????????????????????????????????????? | +----------------------------------------------------+ Best States ------------- Heat Dissipation 25 Energy Generation 15 Energy Capacity 200 Matter Stores 300 Matter Capacity 300 Sight Range 16 Terrain Scan Range 16 Terrain Scan Density 10 Evasion (%) 55 Item Schematics ----------------- None Robot Schematics ------------------ None Fabricated ------------ Nothing Repaired ---------- Nothing Studied --------- None Alien Tech Used ----------------- None Achievements -------------- None Challenges ------------ None Game ------ Seed MicrodissipatorTowerMallet Manual? 0 Play Time 00:15:40 Cumulative 17.3 hours Start 2026.03.11 @ 09:35:00 End 2026.03.11 @ 09:49:26 Sessions 1 Manual Loads 0 Difficulty Rogue Special Mode None Game No. 33 Rogue 33 Adventurer 0 Explorer 0 Win Type - Total 0 Types 0/0/0/0/0/0/0/0/0/0 Lore% 22 Gallery% 18 Achievement% 15 Wizard Run 0 Options --------- Layout 1 ASCII 0 Keyboard 0 Movement Numpad Keybinds 0 Fullscreen 1 Font 24/Smallcaps Map View 50x35 Zoom Use 0% Tactical HUD 1 Map Filters NONE Filters NONE Steam 1 RUN: 6da9d355-f937-4bd2-b24d-53a915fc1fed